bitfinex/quotes_SOLUSD_20250929
["timestamp","ask_amount","ask_price","bid_price","bid_amount"]
[1759134896543,26.0,209.37,209.36,0.72]
[1759134897268,26.0,209.37,209.35,41.53667469]
[1759134897472,26.0,209.39,209.36,0.72]
[1759134897660,26.0,209.39,209.37,36.76]
[1759134898231,26.0,209.39,209.37,37.48]
[1759134898437,0.2,209.4,209.37,37.48]
[1759134899447,0.2,209.4,209.38,0.72]
[1759134900057,0.2,209.4,209.37,41.53612146]
[1759134900354,0.2,209.4,209.38,0.72]
[1759134900556,0.2,209.4,209.37,41.53612146]
[1759134900757,0.2,209.4,209.38,0.72]
[1759134900945,0.2,209.4,209.39,37.48]
[1759134901462,0.2,209.4,209.39,42.25577725]
[1759134902652,0.2,209.4,209.39,37.48]
[1759134904161,0.2,209.4,209.39,42.25577725]
[1759134907461,0.2,209.43,209.39,54.19522039]
[1759134907656,0.2,209.43,209.4,0.72]
[1759134907848,0.2,209.43,209.41,36.8]
[1759134908047,0.2,209.43,209.42,0.72]
[1759134908251,0.2,209.46,209.42,2.63437938]
[1759134908454,0.2,209.46,209.43,37.52]
[1759134908668,0.2,209.46,209.45,4.77440916]
[1759134908860,0.2,209.46,209.45,41.59440916]
[1759134909061,0.2,209.46,209.45,42.31440916]
[1759134909261,0.2,209.46,209.45,44.22851372]
[1759134910662,0.2,209.46,209.45,44.30851372]
[1759134913561,0.2,209.46,209.45,42.41440916]
[1759134913770,0.2,209.46,209.45,44.32860531]
[1759134918463,1e-08,209.46,209.45,44.32860531]
[1759134919162,0.2,209.51,209.46,13.59559401]
[1759134919352,0.2,209.51,209.47,36.9]
[1759134919554,0.2,209.51,209.47,37.61]
[1759134919754,0.2,209.51,209.48,3.10628127]
[1759134919972,0.2,209.51,209.5,4.77326968]
[1759134920960,0.86,209.51,209.5,4.77326968]
[1759134921161,0.86,209.51,209.5,36.92]
[1759134922075,0.2,209.51,209.5,41.69326968]
[1759134922973,0.2,209.51,209.5,36.92]
[1759134923168,0.86,209.51,209.5,36.92]
[1759134927264,0.2,209.51,209.5,36.92]
[1759134927456,0.2,209.51,209.5,42.41326968]
[1759134927777,0.2,209.51,209.5,41.69326968]
[1759134928182,0.2,209.51,209.5,42.41326968]
[1759134930674,0.2,209.51,209.5,44.32691637]
[1759134934687,25.7,209.56,209.5,56.26009059]
[1759134936887,2.38950302,209.59,209.5,56.26009059]
[1759134937387,26.0,209.56,209.5,56.26009059]
[1759134937682,26.66,209.56,209.5,55.54009059]
[1759134937980,2.18950302,209.55,209.51,36.84]
[1759134938185,0.66,209.54,209.51,36.84]
[1759134938969,1.52950302,209.55,209.52,4.77281405]
[1759134939167,2.18950302,209.55,209.53,36.84]
[1759134939980,1.52950302,209.55,209.53,36.84]
[1759134940185,26.0,209.55,209.53,36.84]
[1759134940366,26.0,209.55,209.53,37.56]
[1759134940770,26.0,209.56,209.53,36.84]
[1759134941190,26.0,209.56,209.54,0.72]
[1759134941372,26.0,209.57,209.55,37.56]
[1759134941568,26.0,209.57,209.55,36.84]
[1759134943384,26.0,209.57,209.55,41.61209602]
[1759134945203,26.0,209.57,209.55,36.84]
[1759134947501,26.0,209.56,209.55,36.84]
[1759134948207,26.66,209.56,209.51,12.65260464]
[1759134948371,26.16,209.56,209.52,36.82]
[1759134948776,26.16,209.56,209.52,41.59281405]
[1759134948989,30.27191163,209.56,209.51,4.77300262]
[1759134949171,0.66,209.55,209.51,4.77300262]
[1759134949388,0.66,209.54,209.52,36.8]
[1759134950202,26.16,209.56,209.53,4.77258626]
[1759134950398,26.16,209.56,209.54,36.8]
[1759134951501,25.5,209.56,209.54,36.8]
[1759134952510,25.5,209.56,209.54,41.57234185]
[1759134953207,25.5,209.56,209.55,0.69]
[1759134953996,25.5,209.56,209.54,41.57234185]
[1759134955920,25.5,209.56,209.54,36.8]
[1759134956097,26.17,209.56,209.55,36.78]
[1759134956300,25.5,209.56,209.55,36.78]
[1759134957421,26.0,209.57,209.55,36.78]
[1759134957636,26.0,209.56,209.55,36.78]
[1759134958846,26.67,209.56,209.55,36.78]
[1759134959844,26.67,209.56,209.51,4.77296772]
[1759134959845,2.19950302,209.56,209.51,4.77296772]
[1759134960035,0.67,209.55,209.52,36.76]
[1759134960240,1.52950302,209.56,209.52,36.76]
[1759134960419,1.52950302,209.56,209.52,37.45]
[1759134960741,2.19950302,209.56,209.52,37.45]
[1759134960916,28.19950302,209.56,209.52,37.45]
[1759134961119,2.19950302,209.56,209.53,4.77258626]
[1759134961325,6.97142972,209.56,209.54,36.76]
[1759134962643,28.19950302,209.56,209.54,36.76]
[1759134963138,26.0,209.56,209.54,36.76]
[1759134967249,26.0,209.56,209.55,0.69]
[1759134968146,26.0,209.56,209.55,37.43]
[1759134969542,26.0,209.56,209.55,42.20213075]
[1759134970831,26.0,209.56,209.55,36.74]
[1759134971031,26.0,209.56,209.55,37.43]
[1759134971936,26.0,209.56,209.55,36.74]
[1759134972138,26.0,209.56,209.55,37.43]
[1759134972335,26.0,209.57,209.55,42.20213075]
[1759134972550,26.0,209.57,209.56,0.69]
[1759134972753,0.2,209.59,209.56,0.69]
[1759134972952,26.2,209.59,209.57,36.74]
[1759134973157,26.2,209.59,209.58,0.66]
[1759134973358,0.2,209.59,209.58,0.66]
[1759134974246,0.2,209.59,209.58,5.43144765]
[1759134980553,28.96992411,209.65,209.58,42.17144765]
[1759134980746,28.96992411,209.65,209.59,36.74]
[1759134980943,24.2,209.65,209.59,36.74]
[1759134981956,5.42932959,209.68,209.59,36.74]
[1759134982156,6.95883261,209.68,209.59,36.74]
[1759134982357,2.38775361,209.67,209.59,36.74]
[1759134982667,26.0,209.65,209.6,4.77099236]
[1759134983166,26.71,209.65,209.6,4.77099236]
[1759134984267,30.7698946,209.65,209.6,4.77099236]
[1759134984765,26.0,209.65,209.6,4.77099236]
[1759134987266,28.38775361,209.65,209.6,4.77099236]
[1759134989553,28.38775361,209.65,209.59,36.74]
[1759134989554,2.38775361,209.63,209.55,91.23016402]
[1759134989960,2.38775361,209.63,209.56,36.72]
[1759134990161,28.38775361,209.63,209.56,41.49190303]
[1759134990867,2.38775361,209.61,209.55,84.07209798]
[1759134991058,2.38775361,209.61,209.56,36.72]
[1759134991457,3.09775361,209.61,209.56,36.72]
[1759134991677,2.38775361,209.59,209.56,36.72]
[1759134992783,7.15902526,209.59,209.5,0.66]
[1759134992965,7.15902526,209.59,209.51,36.72]
[1759134993966,7.15902526,209.59,209.52,4.77281405]
[1759134994480,2.38775361,209.57,209.52,4.77281405]
[1759134995286,2.38775361,209.55,209.52,4.77281405]
[1759134997383,2.38775361,209.55,209.52,5.43281405]
[1759134999978,2.38775361,209.55,209.51,36.72]
[1759134999979,2.38775361,209.55,209.51,41.49303202]
[1759135000183,3.09775361,209.55,209.51,41.49303202]
[1759135000694,2.38775361,209.55,209.51,42.15303202]
[1759135001561,2.38775361,209.53,209.5,4.77325787]
[1759135001764,2.38775361,209.53,209.46,14.35372359]
[1759135001990,2.38775361,209.51,209.46,4.7741556]
[1759135002165,2.38775361,209.51,209.47,36.72]
[1759135002480,31.48227766,209.55,209.48,0.66]
[1759135002696,2.38775361,209.51,209.48,0.66]
[1759135003094,2.38775361,209.51,209.48,36.72]
[1759135003286,2.38775361,209.53,209.49,0.66]
[1759135004283,2.38775361,209.53,209.49,5.43340272]
[1759135004484,2.38775361,209.51,209.48,36.72]
[1759135004682,2.38775361,209.49,209.48,36.72]
[1759135007581,29.09775361,209.49,209.48,36.72]
[1759135007787,28.38775361,209.49,209.48,36.72]
[1759135007994,33.87125115,209.49,209.48,36.72]
[1759135008308,28.38775361,209.49,209.48,36.72]
[1759135008714,2.38775361,209.49,209.48,36.72]
[1759135009099,28.38775361,209.49,209.48,36.72]
[1759135009488,29.09775361,209.49,209.48,36.72]
[1759135009689,3.09775361,209.49,209.48,36.72]
[1759135009910,28.38775361,209.49,209.48,36.72]
[1759135010603,7.87125115,209.49,209.48,36.72]
[1759135010931,26.0,209.46,209.45,36.74]
[1759135011101,28.38775361,209.46,209.45,36.74]
[1759135011411,28.38775361,209.46,209.45,37.4]
[1759135011795,2.38775361,209.46,209.45,36.74]
[1759135012012,28.38775361,209.46,209.45,36.74]
[1759135012315,29.09775361,209.46,209.43,36.74]
[1759135012497,2.38775361,209.44,209.43,36.74]
[1759135012902,26.71,209.49,209.43,37.4]
[1759135013200,2.38775361,209.45,209.43,36.74]
[1759135017725,2.38775361,209.45,209.43,37.4]
[1759135019818,7.87222786,209.45,209.43,36.74]
[1759135020127,7.16222786,209.45,209.43,36.74]
[1759135020325,7.16222786,209.45,209.41,0.66]
[1759135020529,28.38775361,209.42,209.41,37.4]
[1759135021119,2.38775361,209.42,209.41,37.4]
[1759135021320,2.38775361,209.42,209.41,42.17532114]
[1759135022631,2.38775361,209.42,209.41,37.4]
[1759135023131,2.38775361,209.42,209.41,36.74]
[1759135023506,29.09775361,209.42,209.36,15.02265709]
[1759135023709,2.38775361,209.4,209.37,37.4]
[1759135023909,2.38775361,209.4,209.38,0.66]
[1759135024434,2.38775361,209.4,209.37,36.74]
[1759135024621,2.38775361,209.38,209.37,37.4]
[1759135025015,2.38775361,209.38,209.37,36.74]
[1759135027813,28.38775361,209.38,209.37,36.74]
[1759135030243,33.16375895,209.38,209.37,36.74]
[1759135031234,33.16375895,209.38,209.35,0.76]
[1759135031235,33.87375895,209.38,209.35,0.1]
[1759135031444,2.38775361,209.36,209.35,0.1]
[1759135031740,28.38775361,209.36,209.35,0.1]
[1759135032765,2.38775361,209.36,209.35,0.1]
[1759135035661,2.38775361,209.38,209.35,5.56668975]
[1759135035836,2.38775361,209.38,209.36,0.69]
[1759135036456,2.38775361,209.38,209.35,36.86]
[1759135036637,2.38775361,209.38,209.35,37.55]
[1759135036961,2.38775361,209.36,209.35,37.55]
[1759135037252,2.38775361,209.36,209.35,42.32668975]
[1759135037464,2.38775361,209.36,209.35,37.55]
[1759135039957,28.38775361,209.36,209.35,36.86]
[1759135040344,28.38775361,209.36,209.35,37.55]
[1759135040748,2.38775361,209.36,209.35,37.55]
[1759135041434,28.38775361,209.36,209.35,37.55]
[1759135041629,2.38775361,209.36,209.35,36.86]
[1759135042056,28.38775361,209.36,209.35,36.86]
[1759135042254,27.53279838,209.36,209.35,36.86]
[1759135042441,33.00925997,209.36,209.35,0.1]
[1759135042756,32.30925997,209.36,209.35,0.1]
[1759135043136,27.53279838,209.36,209.35,0.1]
[1759135043979,1.53279838,209.36,209.35,0.1]
[1759135044533,2.23279838,209.36,209.35,0.1]
[1759135044951,41.82839239,209.36,209.35,0.1]
[1759135045455,1.53279838,209.38,209.35,5.56668975]
[1759135045647,27.53279838,209.38,209.36,0.69]
[1759135045847,27.53279838,209.38,209.37,0.69]
[1759135046163,27.53279838,209.38,209.35,5.56668975]
[1759135046375,27.53279838,209.38,209.36,0.69]
[1759135047349,27.53279838,209.38,209.35,4.87668975]
[1759135047558,27.53279838,209.38,209.35,0.79]
[1759135047765,28.23279838,209.38,209.35,0.1]
[1759135048765,1.53279838,209.36,209.35,0.1]
[1759135051058,33.00925997,209.36,209.35,0.1]
[1759135051463,20.60485398,209.36,209.35,0.1]
[1759135051968,15.82839239,209.36,209.35,0.1]
[1759135052174,15.12839239,209.36,209.35,0.1]
[1759135054879,19.90485398,209.36,209.35,0.1]
[1759135056476,15.12839239,209.36,209.35,0.1]
[1759135057180,19.90485398,209.36,209.35,0.1]
[1759135057870,15.12839239,209.36,209.35,0.1]
[1759135062677,15.82839239,209.36,209.35,0.1]
[1759135063188,15.12839239,209.36,209.35,0.1]
[1759135063559,13.59559401,209.36,209.35,0.1]
[1759135064770,15.12839239,209.36,209.35,0.1]
[1759135066362,41.12839239,209.36,209.35,0.1]
[1759135066558,15.12839239,209.36,209.35,0.1]
[1759135066763,1.53279838,209.36,209.35,0.79]
[1759135067693,1.53279838,209.36,209.35,5.56668975]
[1759135069091,1.53279838,209.36,209.35,0.79]
[1759135071692,27.53279838,209.36,209.35,0.79]
[1759135078601,46.62485398,209.36,209.35,0.1]
[1759135080405,26.0,209.39,209.35,0.77]
[1759135080601,26.0,209.38,209.35,5.54668975]
[1759135080803,26.0,209.38,209.36,0.67]
[1759135081520,26.0,209.38,209.36,5.44629929]
[1759135081797,27.53279838,209.4,209.37,0.67]
[1759135083207,26.0,209.4,209.38,4.77600534]
[1759135083397,1.53279838,209.44,209.39,0.67]
[1759135083592,3.93874917,209.49,209.39,0.67]
[1759135083888,1.53279838,209.47,209.39,0.67]
[1759135084402,26.0,209.45,209.39,0.67]
[1759135084903,26.0,209.45,209.4,16.71442215]
[1759135085093,2.25279838,209.44,209.37,0.67]
[1759135085286,1.53279838,209.42,209.38,0.67]
[1759135085689,1.53279838,209.42,209.39,0.67]
[1759135086114,1.53279838,209.42,209.36,4.77646159]
[1759135086311,1.53279838,209.42,209.4,0.67]
[1759135087114,31.49444319,209.45,209.4,0.67]
[1759135087115,41.12839239,209.44,209.4,0.67]
[1759135087606,27.53279838,209.44,209.4,5.44544173]
[1759135087811,26.0,209.44,209.41,0.67]
[1759135087991,26.0,209.44,209.4,4.77544173]
[1759135088313,26.0,209.44,209.41,0.67]
[1759135088507,26.0,209.44,209.42,0.67]
[1759135089620,26.0,209.44,209.42,5.44499021]
[1759135090313,26.0,209.44,209.42,0.67]
[1759135090613,27.53279838,209.44,209.41,4.77528273]
[1759135090826,27.53279838,209.44,209.41,5.44528273]
[1759135091004,26.0,209.44,209.41,4.77528273]
[1759135091325,26.0,209.44,209.42,0.67]
[1759135091503,26.0,209.44,209.41,4.77528273]
[1759135091702,26.0,209.44,209.41,0.67]
[1759135092113,26.0,209.44,209.42,0.67]
[1759135092824,26.0,209.44,209.39,16.71502476]
[1759135093021,1.53279838,209.48,209.43,0.69]
[1759135093331,26.0,209.46,209.44,4.77463712]
[1759135093506,26.0,209.46,209.45,0.69]
[1759135094138,26.0,209.46,209.45,5.46440916]
[1759135095624,26.0,209.46,209.43,0.69]
[1759135096014,26.0,209.46,209.44,0.69]
[1759135097503,26.0,209.46,209.44,5.46442093]
[1759135098426,26.0,209.46,209.42,11.93771326]
[1759135098634,26.0,209.46,209.43,0.69]
[1759135099519,26.0,209.46,209.44,0.69]
[1759135100029,26.0,209.46,209.44,5.46446075]
[1759135101213,26.66,209.46,209.43,4.77482026]
[1759135102908,26.66,209.46,209.43,5.47482026]
[1759135103110,26.0,209.46,209.43,5.47482026]
[1759135103316,26.0,209.46,209.43,4.77482026]
[1759135103519,26.0,209.46,209.44,0.7]
[1759135104059,0.66,209.45,209.39,0.7]
[1759135104335,0.66,209.45,209.4,36.72]
[1759135104509,0.66,209.44,209.4,37.42]
[1759135105106,0.66,209.44,209.4,42.19552547]
[1759135107133,26.0,209.46,209.41,0.7]
[1759135107431,26.0,209.46,209.42,4.77509311]
[1759135107628,0.66,209.45,209.42,4.77509311]
[1759135108057,26.0,209.44,209.42,4.77509311]
[1759135108239,26.0,209.44,209.41,0.7]
[1759135108435,0.66,209.43,209.4,36.72]
[1759135109963,26.0,209.41,209.36,0.7]
[1759135110280,26.0,209.41,209.37,5.47619583]
[1759135110449,0.66,209.43,209.38,0.7]
[1759135110649,26.0,209.42,209.38,0.7]
[1759135110962,0.66,209.42,209.38,0.7]
[1759135111466,39.59559401,209.43,209.39,0.7]
[1759135111636,39.59559401,209.43,209.39,5.47573107]
[1759135111956,39.59559401,209.43,209.39,4.77573107]
[1759135112158,0.66,209.42,209.39,4.77573107]
[1759135112350,44.37047792,209.43,209.39,5.47573107]
[1759135113063,0.66,209.42,209.38,4.77598334]
[1759135113265,0.66,209.42,209.38,5.47598334]
[1759135113653,44.37047792,209.43,209.38,0.7]
[1759135113965,0.66,209.42,209.38,0.7]
[1759135114653,44.37047792,209.43,209.39,0.7]
[1759135114965,44.37047792,209.43,209.37,36.72]
[1759135115161,0.66,209.42,209.37,0.7]
[1759135115478,44.37047792,209.43,209.38,0.7]
[1759135115761,26.0,209.43,209.39,0.7]
[1759135117266,26.0,209.43,209.39,5.47574584]
[1759135117442,26.0,209.41,209.4,0.7]
[1759135117768,26.0,209.43,209.41,0.7]
[1759135117960,26.0,209.43,209.42,0.7]
[1759135118557,26.0,209.44,209.38,16.71601871]
[1759135118761,26.0,209.44,209.39,0.7]
[1759135119566,26.0,209.43,209.4,4.77554918]
[1759135119872,26.0,209.43,209.4,5.47554918]
[1759135120044,26.0,209.43,209.41,0.7]
[1759135120247,26.0,209.43,209.4,4.77554918]
[1759135120440,26.0,209.43,209.4,5.47554918]
[1759135121054,26.0,209.43,209.38,16.71601871]
[1759135121246,26.0,209.43,209.39,0.7]
[1759135122265,2.3924479,209.44,209.4,0.7]
[1759135122445,3.0524479,209.44,209.4,0.7]
[1759135124166,26.0,209.43,209.41,4.77532114]
[1759135124551,26.0,209.43,209.41,5.47532114]
[1759135126069,26.0,209.43,209.38,16.71601871]
[1759135126249,26.0,209.43,209.39,0.7]
[1759135126975,26.0,209.43,209.4,0.7]
[1759135127275,26.0,209.43,209.41,4.77532114]
[1759135127872,0.66,209.43,209.41,4.77532114]
[1759135128677,0.66,209.43,209.39,4.77561494]
[1759135129174,0.66,209.43,209.39,5.47561494]
[1759135129964,26.0,209.43,209.4,0.7]
[1759135131278,26.0,209.43,209.39,4.77561494]
[1759135131456,26.0,209.43,209.4,0.69]
[1759135133582,26.0,209.43,209.4,5.46536933]
[1759135134278,26.0,209.43,209.4,0.69]
[1759135134782,26.72,209.43,209.38,4.77600534]
[1759135135081,26.0,209.43,209.39,0.69]
[1759135135281,26.0,209.43,209.38,4.77600534]
[1759135135282,26.0,209.43,209.4,0.69]
[1759135135684,2.3924479,209.46,209.41,5.46532114]
[1759135135859,2.3924479,209.46,209.42,37.41]
[1759135136066,3.1124479,209.46,209.42,37.41]
[1759135136267,29.1124479,209.46,209.42,37.41]
[1759135136462,0.72,209.45,209.42,37.41]
[1759135136775,0.72,209.45,209.42,36.72]
[1759135138488,26.72,209.45,209.43,4.77486511]
[1759135138686,26.72,209.45,209.42,36.72]
[1759135138887,26.0,209.45,209.42,36.72]
[1759135139094,0.72,209.44,209.42,36.72]
[1759135139767,3.94041132,209.47,209.43,0.69]
[1759135139972,3.1124479,209.47,209.43,0.69]
[1759135140271,2.3924479,209.47,209.43,0.69]
[1759135140472,3.1124479,209.47,209.43,5.4648196]
[1759135141082,0.72,209.46,209.43,4.7748196]
[1759135141385,26.72,209.46,209.43,4.7748196]
[1759135142988,26.0,209.47,209.44,0.69]
[1759135143189,26.0,209.48,209.44,0.69]
[1759135143391,26.0,209.47,209.44,0.69]
[1759135143772,3.22101109,209.5,209.44,0.69]
[1759135143986,26.0,209.48,209.44,0.69]
[1759135144493,26.0,209.48,209.45,36.7]
[1759135144689,26.0,209.48,209.46,0.69]
[1759135144880,26.0,209.48,209.47,0.69]
[1759135146891,26.0,209.48,209.45,41.47437822]
[1759135147095,26.0,209.48,209.45,42.16437822]
[1759135148807,2.3924479,209.46,209.4,0.69]
[1759135148980,0.72,209.45,209.41,36.7]
[1759135149298,3.1124479,209.44,209.42,36.7]
[1759135149827,2.3924479,209.44,209.42,36.7]
[1759135150106,3.1124479,209.44,209.42,36.7]
[1759135151015,0.72,209.43,209.42,36.7]
[1759135151306,0.72,209.43,209.4,36.7]
[1759135151515,28.3924479,209.41,209.34,14.36403247]
[1759135151677,0.72,209.42,209.33,0.1]
[1759135151678,2.3924479,209.39,209.35,36.8]
[1759135151882,2.3924479,209.37,209.35,36.8]
[1759135153678,3.0524479,209.37,209.35,36.8]
[1759135153878,7.82871198,209.37,209.35,36.8]
[1759135154294,2.3924479,209.37,209.35,36.8]
[1759135154680,3.0524479,209.37,209.35,36.8]
[1759135154880,7.82868297,209.37,209.35,36.8]
[1759135155603,7.16868297,209.37,209.35,36.8]
[1759135156185,0.66,209.36,209.35,0.1]
[1759135156611,7.16868297,209.37,209.35,0.1]
[1759135157200,2.3924479,209.37,209.35,0.1]
[1759135157408,26.0,209.36,209.35,0.1]
[1759135158592,26.0,209.36,209.35,0.76]
[1759135158782,26.0,209.36,209.35,0.1]
[1759135159309,0.25,239.37,209.35,5.53666999]
[1759135159310,28.3924479,209.39,209.35,5.53666999]
[1759135159607,13.59559401,209.43,209.36,37.36]
[1759135159783,2.3924479,209.41,209.37,0.66]
[1759135159983,26.0,209.4,209.37,0.66]
[1759135160309,26.0,209.4,209.38,0.66]
[1759135160517,26.0,209.4,209.39,36.7]
[1759135161512,26.0,209.4,209.38,0.66]
[1759135161812,26.0,209.4,209.38,37.36]
[1759135163002,31.43560641,209.4,209.37,36.7]
[1759135163195,2.3924479,209.39,209.37,36.7]
[1759135163394,0.66,209.38,209.37,36.7]
[1759135163710,28.3924479,209.39,209.37,36.7]
[1759135163912,5.43606515,209.38,209.35,36.8]
[1759135164088,2.3924479,209.37,209.35,36.8]
[1759135166305,1.53255387,209.37,209.35,36.8]
[1759135166504,5.43606515,209.38,209.35,36.8]
[1759135166686,1.53255387,209.37,209.35,36.8]
[1759135167802,1.53255387,209.37,209.36,0.7]
[1759135168217,26.0,209.38,209.36,5.47635007]
[1759135168393,26.0,209.38,209.37,0.7]
[1759135170501,1.53255387,209.39,209.37,0.7]
[1759135172917,6.30838752,209.39,209.35,36.8]
[1759135173221,6.30838752,209.39,209.35,37.5]
[1759135173621,1.53255387,209.37,209.35,36.8]
[1759135174114,1.53255387,209.37,209.35,37.5]
[1759135174617,5.43583365,209.39,209.36,0.7]
[1759135174618,1.53255387,209.39,209.36,0.7]
[1759135174925,1.53255387,209.41,209.36,0.7]
[1759135175104,1.53255387,209.41,209.37,4.77623346]
[1759135175298,1.53255387,209.41,209.38,37.4]
[1759135175497,26.0,209.4,209.39,0.7]
[1759135176421,26.0,209.4,209.38,36.7]
[1759135176624,1.53255387,209.39,209.38,36.7]
[1759135176828,2.19255387,209.39,209.35,0.8]
[1759135177122,1.53255387,209.37,209.35,36.8]
[1759135178111,6.30890191,209.37,209.35,36.8]
[1759135179027,1.53255387,209.37,209.35,37.5]
[1759135181131,26.0,209.4,209.36,0.7]
[1759135181419,1.53255387,209.45,209.36,0.7]
[1759135181825,26.0,209.44,209.36,0.7]
[1759135182527,26.0,209.45,209.36,0.7]
[1759135184124,27.53255387,209.47,209.37,16.71681711]
[1759135184340,26.0,209.45,209.38,0.7]
[1759135184517,26.0,209.45,209.39,36.7]
[1759135184718,27.53255387,209.47,209.4,0.7]
[1759135184923,26.0,209.45,209.4,0.7]
[1759135185531,26.0,209.45,209.41,5.47532114]
[1759135186426,26.0,209.45,209.41,0.7]
[1759135187024,26.0,209.44,209.41,0.7]
[1759135187212,26.0,209.44,209.42,36.7]
[1759135188110,26.0,209.44,209.42,41.47493656]
[1759135188536,26.0,209.44,209.42,42.17493656]
[1759135188917,26.0,209.44,209.42,41.47493656]
[1759135194443,26.0,209.44,209.42,42.14493656]
[1759135195926,26.0,209.45,209.42,42.14493656]
[1759135198965,26.66,209.46,209.42,42.14493656]
[1759135199455,26.0,209.45,209.42,42.14493656]
[1759135203035,0.66,209.46,209.43,0.67]
[1759135203036,26.0,209.46,209.43,0.67]
[1759135203245,26.0,209.46,209.44,36.68]
[1759135203445,26.72,209.46,209.44,36.68]
[1759135204358,26.0,209.45,209.44,36.68]
[1759135205246,0.72,209.45,209.44,36.68]
[1759135205453,26.0,209.46,209.44,36.68]
[1759135205772,26.72,209.46,209.44,36.68]
[1759135206174,26.0,209.45,209.44,36.68]
[1759135206860,26.0,209.46,209.44,37.35]
[1759135207373,26.0,209.45,209.44,36.68]
[1759135210050,26.0,209.45,209.44,37.35]
[1759135210872,0.72,209.51,209.44,42.12463712]
[1759135211060,1.53255387,209.52,209.45,0.67]
[1759135211373,27.53255387,209.5,209.46,36.68]
[1759135211671,28.25255387,209.49,209.46,36.68]
[1759135212774,1.53255387,209.47,209.42,0.71]
[1759135212986,0.7,209.46,209.43,36.68]
[1759135213190,1.53255387,209.47,209.43,36.68]
[1759135213389,2.23255387,209.47,209.43,37.39]
[1759135213777,1.53255387,209.47,209.43,37.39]
[1759135214083,1.53255387,209.45,209.43,36.68]
[1759135214793,1.53255387,209.45,209.43,37.39]
[1759135217096,1.53255387,209.47,209.44,0.71]
[1759135217987,1.53255387,209.47,209.45,0.71]
[1759135218187,1.53255387,209.47,209.43,41.45475446]
[1759135218374,1.53255387,209.47,209.44,0.71]
[1759135220391,1.53255387,209.47,209.44,5.48442383]
[1759135220592,1.53255387,209.47,209.45,0.71]
[1759135220896,1.53255387,209.47,209.44,5.48442383]
[1759135221599,1.53255387,209.47,209.44,5.44442383]
[1759135221992,1.53255387,209.47,209.45,0.67]
[1759135222186,2.22255387,209.47,209.43,42.12482663]
[1759135222575,1.53255387,209.47,209.43,41.45482663]
[1759135222788,1.53255387,209.47,209.44,0.67]
[1759135223092,1.53255387,209.47,209.43,41.45482663]
[1759135223300,1.53255387,209.47,209.44,0.67]
[1759135224597,1.53255387,209.47,209.45,0.67]
[1759135225501,1.53255387,209.47,209.44,4.77460953]
[1759135225695,1.53255387,209.47,209.44,5.44460953]
[1759135225996,1.53255387,209.47,209.44,0.67]
[1759135226195,31.463773,209.48,209.44,0.67]
[1759135226380,2.39234626,209.47,209.44,37.35]
[1759135226999,0.69,209.47,209.44,36.68]
[1759135227188,2.39234626,209.47,209.44,37.35]
[1759135227492,3.08234626,209.47,209.44,36.68]
[1759135228009,7.8563522,209.47,209.44,36.68]
[1759135228498,7.8563522,209.47,209.44,37.35]